bitfinex-derivatives/quotes_BNBF0:USTF0_20250529
["timestamp","ask_amount","ask_price","bid_price","bid_amount"]
[1748523584177,1.00411086,684.22,683.36,0.46279435]
[1748523584378,1.00411086,684.21,683.36,0.46279435]
[1748523584578,0.29229082,684.25,683.36,0.46279435]
[1748523584579,1.00411086,684.2,683.36,0.46279435]
[1748523584779,1.00411086,684.19,683.36,0.46279435]
[1748523584981,1.00411086,684.18,683.37,0.46279435]
[1748523585181,1.00403148,684.17,683.37,0.46279435]
[1748523585378,0.29229082,684.25,683.37,0.46279435]
[1748523585584,1.00401165,684.24,683.37,0.46279435]
[1748523585881,1.00401165,684.23,683.37,0.46279435]
[1748523586083,1.00401165,684.22,683.37,0.46279435]
[1748523586278,1.00401165,684.21,683.37,0.46279435]
[1748523586583,1.00403691,684.2,683.36,0.46279435]
[1748523586783,1.00403691,684.19,683.36,0.46279435]
[1748523586985,1.00403707,684.18,683.37,0.46279435]
[1748523587185,1.00403707,684.17,683.37,0.46279435]
[1748523587383,1.00403707,684.16,683.37,0.46279435]
[1748523587583,1.00403707,684.15,683.36,0.46279435]
[1748523587781,1.00403707,684.14,683.36,0.46279435]
[1748523587983,1.00403707,684.13,683.44,0.46279435]
[1748523588281,1.00383365,684.12,683.44,0.46279435]
[1748523588485,1.00377398,684.11,683.44,0.46279435]
[1748523588686,1.00377398,684.1,683.44,0.46279435]
[1748523588881,1.00377398,684.09,683.44,0.46279435]
[1748523589107,1.00377398,684.08,683.44,0.46279435]
[1748523589285,1.00377398,684.07,683.24,0.46279435]
[1748523589482,1.00377398,684.06,683.24,0.46279435]
[1748523589785,1.00377398,684.05,683.24,0.46279435]
[1748523589981,1.00377398,684.04,683.24,0.46279435]
[1748523590181,1.00377398,684.03,683.24,0.46279435]
[1748523590485,1.00377398,684.02,683.24,0.46279435]
[1748523590705,0.29229082,684.25,683.24,0.46279435]
[1748523590891,1.00371371,684.24,683.24,0.46279435]
[1748523591086,1.00371371,684.23,683.21,0.46279435]
[1748523591286,1.00371371,684.22,683.21,0.46279435]
[1748523591485,1.00371371,684.21,683.21,0.46279435]
[1748523591685,1.0037569,684.2,683.21,0.46279435]
[1748523591885,0.29229082,684.25,683.19,0.90679435]
[1748523592085,1.0037577,684.24,683.19,0.90679435]
[1748523592284,1.0037577,684.23,683.19,0.90679435]
[1748523592489,1.0037577,684.22,683.19,0.90679435]
[1748523592790,1.0037577,684.21,683.19,0.90679435]
[1748523592987,1.0037577,684.2,683.19,0.90679435]
[1748523593188,0.29229082,684.25,683.19,0.90679435]
[1748523593483,1.00375322,684.24,683.19,0.90679435]
[1748523593687,1.00375443,684.23,683.19,0.90679435]
[1748523593883,1.00375443,684.22,683.2,0.46279435]
[1748523594084,1.00375443,684.21,683.2,0.46279435]
[1748523594290,1.00375443,684.2,683.2,0.46279435]
[1748523594583,0.29229082,684.25,683.2,0.46279435]
[1748523594584,1.00375443,684.19,683.2,0.46279435]
[1748523594790,1.00375443,684.18,683.2,0.46279435]
[1748523594984,1.00374803,684.17,683.2,0.46279435]
[1748523595282,1.00374803,684.16,683.2,0.46279435]
[1748523595485,1.00374803,684.15,683.2,0.46279435]
[1748523595686,1.00374803,684.14,683.2,0.46279435]
[1748523595884,0.29229082,684.25,683.2,0.46279435]
[1748523595885,1.00374803,684.13,683.2,0.46279435]
[1748523596084,1.00374803,684.12,683.2,0.46279435]
[1748523596282,1.00374803,684.11,683.2,0.46279435]
[1748523596487,1.00374803,684.11,683.19,0.444]
[1748523596488,1.00396906,684.1,683.19,0.90679435]
[1748523596789,1.00396906,684.09,683.19,0.90679435]
[1748523596990,1.00396906,684.08,683.19,0.90679435]
[1748523597189,1.00396906,684.07,683.19,0.90679435]
[1748523597385,1.00396906,684.06,683.19,0.90679435]
[1748523597586,1.00396906,684.05,683.19,0.90679435]
[1748523597790,0.29229082,684.25,683.2,0.46279435]
[1748523598086,0.29229082,684.25,683.19,0.444]
[1748523598286,1.0040038,684.24,683.19,0.444]
[1748523598490,1.0040038,684.23,683.19,0.444]
[1748523598790,1.0040038,684.22,683.19,0.444]
[1748523599092,0.29229082,684.25,683.26,0.46279435]
[1748523599288,1.00399669,684.24,683.26,0.46279435]
[1748523599490,1.00399842,684.23,683.27,0.46279435]
[1748523599790,1.00399909,684.22,683.27,0.46279435]
[1748523600088,1.00399909,684.21,683.27,0.46279435]
[1748523600287,1.00399909,684.2,683.27,0.46279435]
[1748523600490,1.00399909,684.19,683.27,0.46279435]
[1748523600797,1.00399909,684.18,683.27,0.46279435]
[1748523601091,1.00399909,684.17,683.27,0.46279435]
[1748523601292,1.00399909,684.16,683.27,0.46279435]
[1748523601493,1.00399909,684.15,683.27,0.46279435]
[1748523601690,1.00399909,684.14,683.26,0.46279435]
[1748523601893,1.00399909,684.13,683.26,0.46279435]
[1748523602186,1.003973,684.12,683.26,0.46279435]
[1748523602393,1.003973,684.11,683.29,0.46279435]
[1748523602697,1.003973,684.1,683.29,0.46279435]
[1748523602890,1.003973,684.09,683.29,0.46279435]
[1748523603092,1.00400088,684.08,683.3,0.46279435]
[1748523603290,1.00400088,684.07,683.3,0.46279435]
[1748523603490,0.29229082,684.25,683.29,0.46279435]
[1748523603491,1.00397661,684.06,683.29,0.46279435]
[1748523603691,1.00397661,684.05,683.3,0.46279435]
[1748523603989,1.00401106,684.04,683.29,0.46279435]
[1748523604190,1.00401106,684.03,683.29,0.46279435]
[1748523604387,1.00401106,684.02,683.28,0.46279435]
[1748523604687,1.00401106,684.01,683.28,0.46279435]
[1748523604886,1.00401106,684.0,683.28,0.46279435]
[1748523605085,1.00401106,683.99,683.28,0.46279435]
[1748523605290,0.29229082,684.25,683.28,0.46279435]
[1748523605486,1.00400704,684.24,683.3,0.46279435]
[1748523605686,1.00400704,684.23,683.3,0.46279435]
[1748523605990,1.00400704,684.22,683.3,0.46279435]
[1748523606291,1.00400704,684.21,683.34,0.46279435]
[1748523606587,1.00400704,684.2,683.34,0.46279435]
[1748523606792,1.00383048,684.19,683.34,0.46279435]
[1748523607091,1.00383143,684.18,683.34,0.46279435]
[1748523607391,1.00383143,684.17,683.34,0.46279435]
[1748523607689,1.00372021,684.16,683.34,0.46279435]
[1748523607889,1.00372021,684.15,683.34,0.46279435]
[1748523608089,1.00372021,684.14,683.34,0.46279435]
[1748523608290,1.00372021,684.13,683.33,0.46279435]
[1748523608587,1.00361772,684.12,683.32,0.46279435]
[1748523608786,1.00361772,684.11,683.32,0.46279435]
[1748523608996,1.00361772,684.1,683.36,0.46279435]
[1748523609293,1.00361772,684.09,683.36,0.46279435]
[1748523609490,1.0035762,684.08,683.37,0.46279435]
[1748523609693,1.0035762,684.07,683.36,0.46279435]
[1748523609891,1.0035762,684.06,683.36,0.46279435]
[1748523610193,1.00357754,684.05,683.36,0.46279435]
[1748523610388,1.00357754,684.04,683.36,0.46279435]
[1748523610591,1.00357754,684.03,683.36,0.46279435]
[1748523610792,1.00357754,684.02,683.36,0.46279435]
[1748523610992,1.00357754,684.01,683.36,0.46279435]
[1748523611192,1.00357754,684.0,683.36,0.46279435]
[1748523611389,1.00407831,683.99,683.36,0.46279435]
[1748523611594,1.00407831,683.98,683.36,0.46279435]
[1748523611793,1.00407831,683.97,683.36,0.46279435]
[1748523611991,0.29229082,684.25,683.36,0.46279435]
[1748523612193,1.00408032,684.24,683.35,0.46279435]
[1748523612489,1.00408032,684.23,683.35,0.46279435]
[1748523612688,1.00408032,684.23,683.19,0.444]
[1748523612689,1.00402747,684.22,683.37,0.46279435]
[1748523612893,1.00402747,684.21,683.37,0.46279435]
[1748523613093,1.00402747,684.2,683.37,0.46279435]
[1748523613292,1.00402747,684.19,683.37,0.46279435]
[1748523613495,1.00402747,684.18,683.38,0.46279435]
[1748523613789,1.00398193,684.17,683.38,0.46279435]
[1748523613990,1.00398193,684.16,683.4,0.46279435]
[1748523614194,1.00398193,684.15,683.4,0.46279435]
[1748523614494,1.00397127,684.14,683.4,0.46279435]
[1748523614695,1.00397127,684.13,683.4,0.46279435]
[1748523614895,0.29229082,684.25,683.22,0.46279435]
[1748523615097,1.00397177,684.24,683.23,0.46279435]
[1748523615292,0.29229082,684.25,683.23,0.46279435]
[1748523615293,1.00397177,684.23,683.23,0.46279435]
[1748523615597,1.00397177,684.22,683.23,0.46279435]
[1748523615797,1.00397177,684.21,683.23,0.46279435]
[1748523615996,1.00397177,684.2,683.23,0.46279435]
[1748523616292,1.00393255,684.19,683.23,0.46279435]
[1748523616492,1.00393255,684.18,683.24,0.46279435]
[1748523616698,1.00390174,684.17,683.24,0.46279435]
[1748523616898,1.00390174,684.16,683.23,0.46279435]
[1748523617113,1.00390174,684.15,683.19,0.444]
[1748523617309,0.29229082,684.25,683.14,0.29276575]
[1748523617513,1.00379544,684.24,683.14,0.29276575]
[1748523617797,0.29229082,684.25,683.14,0.29276575]
[1748523618001,1.00378799,684.24,683.14,0.29276575]
[1748523618202,0.29229082,684.25,683.14,0.29276575]
[1748523618402,1.00437109,684.24,683.14,0.29276575]
[1748523618700,1.00437109,684.23,683.14,0.29276575]
[1748523618897,1.00437109,684.22,683.14,0.29276575]
[1748523619100,1.00437109,684.21,683.14,0.29276575]
[1748523619400,1.00437109,684.2,683.14,0.29276575]
[1748523619600,1.00437109,684.19,683.14,0.29276575]
[1748523619903,1.00436143,684.18,683.14,0.29276575]
[1748523620097,0.29229082,684.25,683.14,0.29276575]
[1748523620296,1.00436644,684.24,683.14,0.29276575]
[1748523620596,1.00436644,684.23,683.14,0.29276575]
[1748523620796,1.00436644,684.22,683.14,0.29276575]
[1748523621000,1.00436644,684.21,683.14,0.29276575]
[1748523621195,0.29229082,684.25,683.14,0.29276575]
[1748523621196,1.00436644,684.2,683.14,0.29276575]
[1748523621400,1.00436644,684.19,683.14,0.29276575]
[1748523621697,1.00436644,684.18,683.14,0.29276575]
[1748523621897,1.00436644,684.17,683.14,0.29276575]
[1748523622100,1.00436644,684.16,683.14,0.29276575]
[1748523622300,1.00436644,684.15,683.14,0.29276575]
[1748523622496,1.00436644,684.14,683.14,0.29276575]
[1748523622700,1.00432212,684.13,683.14,0.29276575]
[1748523622999,1.00432212,684.12,683.14,0.29276575]
[1748523623197,1.00432212,684.11,683.14,0.29276575]
[1748523623401,1.00432212,684.1,683.14,0.29276575]
[1748523623601,0.29229082,684.25,683.14,0.29276575]
[1748523623602,1.00432212,684.09,683.14,0.29276575]
[1748523623903,1.00432497,684.08,683.14,0.29276575]
[1748523624102,1.00432497,684.07,683.14,0.29276575]
[1748523624401,1.00432497,684.06,683.14,0.29276575]
[1748523624599,1.00432497,684.05,683.14,0.29276575]
[1748523624798,1.00432497,684.04,683.14,0.29276575]
[1748523625003,1.00431827,684.03,683.14,0.29276575]
[1748523625303,1.00430425,684.02,683.14,0.29276575]
[1748523625505,1.00430425,684.01,683.14,0.29276575]
[1748523625705,1.00430425,684.0,683.14,0.29276575]
[1748523625905,1.00430425,683.99,683.14,0.29276575]
[1748523626107,1.00430425,683.98,683.14,0.29276575]
[1748523626306,1.00430425,683.97,683.14,0.29276575]
[1748523626501,1.00430425,683.96,683.14,0.29276575]
[1748523626708,1.00430425,683.95,683.14,0.29276575]
[1748523627002,1.00430425,683.94,683.14,0.29276575]
[1748523627201,0.29229082,684.25,683.14,0.29276575]
[1748523627202,1.00430425,683.93,683.14,0.29276575]
[1748523627409,1.00430425,683.92,683.14,0.29276575]
[1748523627605,1.00430425,683.91,683.14,0.29276575]
[1748523627907,1.00430425,683.9,683.14,0.29276575]
[1748523628107,1.0043408,683.89,683.14,0.29276575]
[1748523628406,1.00435305,683.88,683.14,0.29276575]
[1748523628608,1.00435264,683.87,683.33,0.46279435]
[1748523628914,1.00435264,683.86,683.4,0.46279435]
[1748523629103,0.29229082,684.25,683.38,0.46279435]
[1748523629305,1.00441566,684.24,683.33,0.46279435]
[1748523629501,0.29229082,684.25,683.33,0.46279435]
[1748523629709,0.29229082,684.25,683.14,0.29276575]
[1748523629710,1.0044156,684.24,683.29,0.46279435]
[1748523629905,1.0044156,684.23,683.26,0.46279435]
[1748523630105,1.0044156,684.22,683.27,0.46279435]
[1748523630302,1.0044156,684.21,683.3,0.46279435]
[1748523630511,1.0044156,684.2,683.29,0.46279435]
[1748523630708,0.29229082,684.25,683.14,0.29276575]
[1748523630709,1.00445262,684.19,683.39,0.46279435]
[1748523630907,1.00445262,684.18,683.39,0.46279435]
[1748523631103,1.00445262,684.17,683.39,0.46279435]
[1748523631407,0.29229082,684.25,683.14,0.29276575]
[1748523631408,1.00443082,684.16,683.32,0.46279435]
[1748523631607,1.00443082,684.15,683.32,0.46279435]
[1748523631909,1.00443082,684.14,683.14,0.29276575]
[1748523632207,1.00445834,684.13,683.14,0.29276575]
[1748523632404,1.00445834,684.12,683.14,0.29276575]
[1748523632600,1.00445834,684.11,683.14,0.29276575]
[1748523632801,1.00440689,684.1,683.14,0.29276575]
[1748523633007,1.00440689,684.09,683.14,0.29276575]
[1748523633206,1.00440689,684.08,683.14,0.29276575]
[1748523633503,1.00440689,684.07,683.14,0.29276575]
[1748523633701,1.00440689,684.06,683.14,0.29276575]
[1748523633908,1.00440689,684.05,683.14,0.29276575]
[1748523634104,1.00440689,684.04,683.14,0.29276575]
[1748523634308,1.00440689,684.03,683.14,0.29276575]
[1748523634508,1.00440689,684.02,683.14,0.29276575]
[1748523634707,1.00429514,684.01,683.14,0.29276575]
[1748523635009,1.00429514,684.0,683.14,0.29276575]
[1748523635303,1.00429514,683.99,683.14,0.29276575]
[1748523635508,1.00429514,683.98,683.14,0.29276575]
[1748523635713,1.00429514,683.97,683.14,0.29276575]
[1748523635908,1.00429514,683.96,683.14,0.29276575]
[1748523636109,1.00429514,683.95,683.14,0.29276575]
[1748523636310,1.00429514,683.94,683.14,0.29276575]
[1748523636513,1.00421012,683.93,683.14,0.29276575]
[1748523636715,1.00420956,683.92,683.14,0.29276575]
[1748523637013,0.29229082,684.25,683.14,0.29276575]
[1748523637209,1.00422502,684.24,683.14,0.29276575]
[1748523637413,1.00422502,684.23,683.14,0.29276575]
[1748523637609,1.00422502,684.22,683.14,0.29276575]
[1748523637913,1.00422502,684.21,683.14,0.29276575]
[1748523638113,1.00419771,684.2,683.14,0.29276575]
[1748523638311,0.29229082,684.25,683.14,0.29276575]
[1748523638508,1.0041715,684.24,683.14,0.29276575]
[1748523638714,1.0041715,684.23,683.14,0.29276575]
[1748523638917,1.0041715,684.22,683.14,0.29276575]
[1748523639117,0.29229082,684.25,683.14,0.29276575]
[1748523639118,1.0041715,684.21,683.14,0.29276575]
[1748523639317,1.0041715,684.2,683.14,0.29276575]
[1748523639513,1.0041715,684.19,683.14,0.29276575]
[1748523639712,1.0041715,684.18,683.14,0.29276575]
[1748523640015,1.0041397,684.17,683.14,0.29276575]
[1748523640216,1.00414168,684.16,683.14,0.29276575]
[1748523640520,1.0041445,684.15,683.14,0.29276575]
[1748523640734,1.0041445,684.14,683.14,0.29276575]
[1748523640917,0.29229082,684.25,683.14,0.29276575]
[1748523641119,1.00411482,684.24,683.14,0.29276575]
[1748523641317,1.00411482,684.23,683.14,0.29276575]
[1748523641518,1.00411482,684.22,683.14,0.29276575]
[1748523641814,1.00408712,684.21,683.14,0.29276575]
[1748523642016,1.00408712,684.2,683.14,0.29276575]
[1748523642216,1.00408712,684.19,683.14,0.29276575]
[1748523642414,1.00406897,684.18,683.14,0.29276575]
[1748523642617,1.00406897,684.17,683.14,0.29276575]
[1748523642818,1.00407012,684.16,683.14,0.29276575]
[1748523643015,1.00407012,684.15,683.14,0.29276575]
[1748523643216,1.00406175,684.14,683.14,0.29276575]
[1748523643426,1.00406175,684.13,683.14,0.29276575]
[1748523643617,0.29229082,684.25,683.14,0.29276575]
[1748523643923,1.00404185,684.24,683.14,0.29276575]
[1748523644118,1.00404185,684.23,683.14,0.29276575]
[1748523644324,1.00404185,684.22,683.14,0.29276575]
[1748523644622,1.00396623,684.21,683.14,0.29276575]
[1748523644823,1.00396623,684.2,683.25,0.46279435]
[1748523645020,1.00396623,684.19,683.25,0.46279435]
[1748523645221,1.00388448,684.18,683.31,0.46279435]
[1748523645422,1.00385189,684.17,683.31,0.46279435]
[1748523645718,1.00385189,684.16,683.31,0.46279435]
[1748523645917,1.00385189,684.15,683.31,0.46279435]
[1748523646122,0.29229082,684.25,683.35,0.46279435]
[1748523646123,1.00368212,684.14,683.35,0.46279435]
[1748523646422,1.00368212,684.13,683.37,0.46279435]
[1748523646618,1.00368212,684.12,683.38,0.46279435]
[1748523646822,1.00368212,684.11,683.39,0.46279435]
[1748523647124,0.29229082,684.25,683.39,0.46279435]
[1748523647422,1.00393681,684.24,683.39,0.46279435]
[1748523647621,1.00393681,684.23,683.39,0.46279435]
[1748523647817,1.00393681,684.22,683.38,0.46279435]
[1748523648124,1.00393681,684.21,683.38,0.46279435]
[1748523648322,1.00394904,684.2,683.37,0.46279435]
[1748523648521,0.29229082,684.25,683.37,0.46279435]
[1748523648718,0.29229082,684.25,683.35,0.46279435]
[1748523648719,1.00386957,684.24,683.35,0.46279435]
[1748523648923,1.00386957,684.23,683.35,0.46279435]
[1748523649121,1.00385994,684.22,683.39,0.46279435]
[1748523649321,1.00385994,684.21,683.37,0.46279435]
[1748523649523,1.00385994,684.2,683.38,0.46279435]
[1748523649824,1.00385994,684.19,683.38,0.46279435]
[1748523650121,1.00385994,684.18,683.38,0.46279435]
[1748523650320,0.29229082,684.25,683.38,0.46279435]
[1748523650321,1.00385994,684.17,683.38,0.46279435]
[1748523650522,1.00385994,684.16,683.39,0.46279435]
[1748523650717,1.00385994,684.16,683.14,0.29276575]
[1748523650718,1.00385994,684.15,683.35,0.46279435]
[1748523650918,1.00385994,684.14,683.35,0.46279435]
[1748523651121,1.00385994,684.13,683.35,0.46279435]
[1748523651322,1.00376109,684.12,683.33,0.46279435]
[1748523651518,1.00362386,684.11,683.35,0.46279435]
[1748523651721,1.00362386,684.1,683.35,0.46279435]
[1748523651919,1.00362386,684.09,683.35,0.46279435]
[1748523652122,1.00364257,684.08,683.35,0.46279435]
[1748523652318,1.00364257,684.07,683.33,0.46279435]
[1748523652520,0.29229082,684.25,683.33,0.46279435]
[1748523652521,1.00364257,684.24,683.33,0.46279435]
[1748523652719,1.00364257,684.23,683.33,0.46279435]
[1748523652924,1.00364257,684.22,683.33,0.46279435]
[1748523653125,0.29229082,684.25,683.33,0.46279435]
[1748523653321,0.29229082,684.25,683.14,0.29276575]
[1748523653322,1.00336455,684.24,683.31,0.46279435]
[1748523653625,1.00336455,684.23,683.31,0.46279435]
[1748523653921,1.00336232,684.22,683.31,0.46279435]
[1748523654222,1.00336232,684.22,683.14,0.29276575]
[1748523654223,1.00336232,684.21,683.3,0.46279435]
[1748523654526,1.00336232,684.2,683.14,0.29276575]
[1748523654726,1.00336232,684.19,683.14,0.29276575]
[1748523655026,1.00321114,684.18,683.14,0.29276575]
[1748523655226,1.00321114,684.17,683.14,0.29276575]
[1748523655526,1.00321114,684.16,683.14,0.29276575]
[1748523655821,1.00321114,684.15,683.14,0.29276575]
[1748523656026,1.00321114,684.14,683.14,0.29276575]
[1748523656322,1.00321114,684.13,683.14,0.29276575]
[1748523656527,1.00308848,684.12,683.14,0.29276575]
[1748523656721,1.00308377,684.11,683.14,0.29276575]
[1748523656922,1.00308377,684.1,683.14,0.29276575]
[1748523657122,1.00306978,684.09,683.14,0.29276575]
[1748523657327,1.00306978,684.08,683.14,0.29276575]
[1748523657622,1.00306978,684.07,683.14,0.29276575]
[1748523657827,1.00306978,684.24,683.14,0.29276575]
[1748523658026,1.00306978,684.23,683.14,0.29276575]
[1748523658326,1.00306978,684.22,683.14,0.29276575]
[1748523658527,1.00306978,684.21,683.14,0.29276575]
[1748523658724,1.00306978,684.2,683.14,0.29276575]
[1748523658923,1.00306978,684.19,683.14,0.29276575]
[1748523659125,1.00306978,684.18,683.14,0.29276575]
[1748523659326,0.29229082,684.25,683.14,0.29276575]
[1748523659527,1.00280682,684.24,683.14,0.29276575]
[1748523659724,1.00280682,684.23,683.14,0.29276575]
[1748523660027,1.00280682,684.22,683.14,0.29276575]
[1748523660226,1.00280682,684.21,683.14,0.29276575]
[1748523660428,1.00281418,684.2,683.14,0.29276575]
[1748523660729,1.00281418,684.19,683.14,0.29276575]
[1748523660924,1.00281817,684.18,683.14,0.29276575]
[1748523661130,1.00281817,684.17,683.14,0.29276575]
[1748523661425,0.29229082,684.25,683.14,0.29276575]
[1748523661426,1.00281817,684.16,683.14,0.29276575]
[1748523661729,0.29229082,684.25,683.14,0.29276575]
[1748523661730,1.00291886,684.15,683.14,0.29276575]
[1748523661929,1.00291886,684.14,683.14,0.29276575]
[1748523662131,1.00291886,684.13,683.14,0.29276575]
[1748523662431,1.00291886,684.12,683.14,0.29276575]
[1748523662626,1.00291886,684.11,683.14,0.29276575]
[1748523662827,1.00291886,684.1,683.14,0.29276575]
[1748523663034,1.00291886,684.09,683.14,0.29276575]
[1748523663234,0.29229082,684.25,683.14,0.29276575]
[1748523663235,1.00291886,684.08,683.14,0.29276575]
[1748523663429,1.00291886,684.07,683.14,0.29276575]
[1748523663633,1.00291886,684.24,683.14,0.29276575]
[1748523663833,1.00289813,684.23,683.14,0.29276575]
[1748523664033,1.00289813,684.22,683.14,0.29276575]
[1748523664233,1.00289813,684.21,683.26,0.46279435]
[1748523664434,1.00288688,684.2,683.26,0.46279435]
[1748523664735,1.00288688,684.19,683.26,0.46279435]
[1748523665034,1.0033144,684.18,683.26,0.46279435]
[1748523665232,0.29229082,684.25,683.27,0.416]
[1748523665433,1.00334805,684.24,683.27,0.416]
[1748523665733,1.00332024,684.23,683.27,0.416]
[1748523665930,0.29229082,684.25,683.27,0.416]
[1748523666130,1.00331843,684.24,683.27,0.416]
[1748523666335,1.00331843,684.23,683.27,0.416]
[1748523666528,1.00330408,684.22,683.27,0.416]
[1748523666838,1.00330408,684.21,683.27,0.416]
[1748523667037,0.29229082,684.25,683.27,0.416]
[1748523667237,1.00331268,684.24,683.27,0.416]
[1748523667443,1.00331268,684.23,683.32,0.46279435]
[1748523667636,1.00331268,684.22,683.32,0.46279435]
[1748523667834,1.00331268,684.21,683.32,0.46279435]
[1748523668038,0.29229082,684.25,683.32,0.46279435]
[1748523668039,1.00331268,684.2,683.32,0.46279435]
[1748523668235,1.00327682,684.19,683.32,0.46279435]
[1748523668439,1.00327682,684.18,683.32,0.46279435]
[1748523668631,1.0032494,684.17,683.32,0.46279435]
[1748523668833,1.0032494,684.16,683.31,0.46279435]
[1748523669040,1.0032494,684.15,683.31,0.46279435]
[1748523669239,1.0032494,684.15,683.27,0.416]
[1748523669240,1.0032494,684.14,683.36,0.46279435]
[1748523669433,0.29229082,684.25,683.36,0.46279435]
[1748523669434,1.0032494,684.13,683.36,0.46279435]
[1748523669634,1.0032494,684.12,683.36,0.46279435]
[1748523669837,1.00321769,684.11,683.36,0.46279435]
[1748523670040,0.29229082,684.25,683.42,0.46279435]
[1748523670041,1.00321769,684.1,683.42,0.46279435]
[1748523670339,1.00321769,684.24,683.42,0.46279435]
[1748523670539,0.29229082,684.25,683.27,0.416]
[1748523670540,1.00321769,684.23,683.43,0.46279435]
[1748523670838,1.00321769,684.22,683.43,0.46279435]
[1748523671035,1.00321769,684.21,683.43,0.46279435]
[1748523671238,1.00321769,684.2,683.43,0.46279435]
[1748523671439,1.00305606,684.19,683.43,0.46279435]
[1748523671636,1.0030602,684.18,683.42,0.46279435]
[1748523671842,1.00305261,684.17,683.42,0.46279435]
[1748523672144,1.00305261,684.16,683.42,0.46279435]
[1748523672437,1.00305261,684.15,683.43,0.46279435]
[1748523672637,1.00303264,684.14,683.43,0.46279435]
[1748523672839,1.00303264,684.14,683.27,0.416]
[1748523672840,1.00303264,684.13,683.44,0.46279435]
[1748523673040,1.00302724,684.12,683.36,0.46279435]
[1748523673239,1.00302585,684.11,683.37,0.46279435]
[1748523673440,1.00302585,684.1,683.37,0.46279435]
[1748523673641,1.00302585,684.24,683.37,0.46279435]
[1748523673839,1.00302585,684.23,683.37,0.46279435]
[1748523674037,1.00302585,684.22,683.37,0.46279435]
[1748523674242,1.00302585,684.21,683.37,0.46279435]
[1748523674442,1.00302585,684.2,683.37,0.46279435]
[1748523674643,1.00302585,684.19,683.37,0.46279435]
[1748523674842,1.00302585,684.18,683.37,0.46279435]
[1748523675044,1.00302585,684.17,683.37,0.46279435]
[1748523675242,1.00312597,684.16,683.38,0.46279435]
[1748523675440,1.00312597,684.15,683.38,0.46279435]
[1748523675645,1.00312597,684.14,683.4,0.46279435]
[1748523675843,1.00312597,684.13,683.4,0.46279435]
[1748523676039,1.00312597,684.12,683.4,0.46279435]
[1748523676240,1.0031044,684.11,683.4,0.46279435]
[1748523676441,1.0031044,684.24,683.4,0.46279435]
[1748523676745,1.00308775,684.23,683.4,0.46279435]
[1748523676942,1.00308775,684.22,683.4,0.46279435]
[1748523677141,1.00308775,684.21,683.31,0.46279435]
[1748523677343,1.00308775,684.2,683.32,0.46279435]
[1748523677543,1.00311292,684.19,683.34,0.46279435]
[1748523677744,1.00311467,684.18,683.34,0.46279435]
[1748523677943,1.00311479,684.17,683.34,0.46279435]
[1748523678139,1.00311479,684.16,683.35,0.46279435]
[1748523678444,1.00315378,684.15,683.35,0.46279435]
[1748523678643,1.00315378,684.14,683.35,0.46279435]
[1748523678841,1.00315378,684.13,683.36,0.46279435]
[1748523679045,1.00319292,684.24,683.36,0.46279435]
[1748523679343,1.00325081,684.23,683.32,0.46279435]
[1748523679542,1.00325081,684.22,683.32,0.46279435]
[1748523679743,1.00324213,684.21,683.32,0.46279435]
[1748523679940,1.00324213,684.2,683.32,0.46279435]
[1748523680240,0.29229082,684.25,683.33,0.46279435]
[1748523680442,1.00324123,684.24,683.33,0.46279435]
[1748523680643,0.29229082,684.25,683.33,0.46279435]
[1748523680644,1.00324123,684.23,683.33,0.46279435]
[1748523680843,1.00334786,684.22,683.33,0.46279435]
[1748523681041,1.00334786,684.21,683.33,0.46279435]
[1748523681240,1.00334786,684.2,683.35,0.46279435]
[1748523681543,1.00334786,684.2,683.27,0.416]
[1748523681544,0.29229082,684.25,683.34,0.46279435]
[1748523681852,1.00338655,684.24,683.35,0.46279435]
[1748523682050,1.00338655,684.23,683.35,0.46279435]
[1748523682241,1.00338655,684.22,683.35,0.46279435]
[1748523682441,1.00338655,684.21,683.35,0.46279435]
[1748523682641,1.00338655,684.2,683.35,0.46279435]
[1748523682945,1.00335126,684.19,683.38,0.46279435]
[1748523683145,1.00335126,684.18,683.38,0.46279435]
[1748523683345,1.00335126,684.17,683.39,0.46279435]
[1748523683542,1.00335126,684.16,683.38,0.46279435]
[1748523683743,1.00335126,684.15,683.38,0.46279435]
[1748523683943,1.00335126,684.14,683.39,0.46279435]
[1748523684147,1.00335126,684.13,683.39,0.46279435]
[1748523684349,0.29229082,684.25,683.39,0.46279435]
[1748523684350,1.00335126,684.12,683.39,0.46279435]
[1748523684546,0.29229082,684.25,683.39,0.46279435]
[1748523684547,1.00335126,684.11,683.39,0.46279435]
[1748523684747,1.00341808,684.1,683.39,0.46279435]
[1748523684944,1.00341808,684.09,683.39,0.46279435]
[1748523685142,1.00341993,684.24,683.38,0.46279435]
[1748523685348,1.003421,684.23,683.38,0.46279435]
[1748523685547,1.003421,684.22,683.39,0.317]
[1748523685844,1.003421,684.21,683.39,0.317]
[1748523686147,1.003421,684.2,683.39,0.317]
[1748523686348,1.003421,684.19,683.39,0.317]
[1748523686551,0.29229082,684.25,683.39,0.317]
[1748523686747,1.00372421,684.24,683.4,0.46279435]
[1748523686949,1.00372421,684.23,683.4,0.46279435]
[1748523687148,1.00372473,684.22,683.46,0.46279435]
[1748523687349,1.00372473,684.21,683.46,0.46279435]